bitfinex-derivatives/quotes_ETHF0:USTF0_20260312
["timestamp","ask_amount","ask_price","bid_price","bid_amount"]
[1773298193739,0.25223056,2030.3,2029.9,0.65187017]
[1773298194635,0.00597056,2030.3,2030.1,0.64621262]
[1773298194844,0.68510538,2030.6,2030.1,0.64621262]
[1773298195844,0.6894798,2030.6,2030.1,0.64621262]
[1773298196946,0.68510538,2030.4,2030.0,1.99561376]
[1773298197244,0.68510538,2030.4,2030.0,0.64621262]
[1773298197439,0.68510538,2030.4,2029.9,0.65187017]
[1773298197646,0.68510538,2030.4,2029.9,0.00565755]
[1773298197840,0.68510538,2030.4,2029.9,0.65187017]
[1773298198041,0.68510538,2030.2,2029.7,0.64621262]
[1773298198642,0.24625,2030.3,2029.7,0.64621262]
[1773298198848,0.24625,2030.3,2029.9,0.64621262]
[1773298199144,0.24625,2030.3,2029.9,0.65015935]
[1773298200244,0.93135538,2030.3,2029.9,0.65015935]
[1773298200439,0.24625,2030.3,2029.9,0.65015935]
[1773298200644,0.68510538,2030.5,2029.9,0.65015935]
[1773298201140,0.00437442,2030.6,2030.1,0.64621262]
[1773298202354,0.6894798,2030.6,2030.1,0.64621262]
[1773298206654,0.00437442,2030.6,2030.1,0.64621262]
[1773298206949,0.2462,2030.7,2030.1,0.64621262]
[1773298207942,0.25226607,2030.7,2030.1,0.64621262]
[1773298208146,0.93737145,2030.7,2030.1,0.64621262]
[1773298212252,0.68510538,2030.6,2030.1,0.64621262]
[1773298215156,0.25226607,2030.7,2030.1,0.64621262]
[1773298216446,0.93737145,2030.7,2030.1,0.64621262]
[1773298217768,0.68510538,2030.6,2030.1,0.64621262]
[1773298224573,0.60446626,2030.4,2030.1,0.64621262]
[1773298232577,0.60446626,2030.4,2030.1,0.62883458]
[1773298232775,0.60446626,2030.4,2030.0,7.73542285]
[1773298232976,0.60446626,2030.4,2030.0,8.36425743]
[1773298233479,0.60446626,2030.4,2029.9,0.24964848]
[1773298233776,0.60446626,2030.4,2029.9,0.87848306]
[1773298235676,0.60446626,2030.2,2029.9,0.00394673]
[1773298235875,0.60446626,2030.2,2029.7,8.36425743]
[1773298236780,0.60446626,2030.0,2029.5,17.27125743]
[1773298236978,0.60446626,2030.0,2029.5,9.5415182]
[1773298238179,0.60446626,2030.0,2029.6,0.62883458]
[1773298244784,0.89039962,2030.1,2029.6,0.62883458]
[1773298244979,0.64411962,2030.0,2029.6,0.62883458]
[1773298257587,0.63164836,2029.8,2029.0,0.61498332]
[1773298257787,0.63164836,2029.6,2029.0,0.61498332]
[1773298258593,0.63164836,2029.6,2029.0,0.62015809]
[1773298260598,0.63164836,2029.4,2029.0,0.62015809]
[1773298260806,0.63164836,2029.4,2028.9,0.86176725]
[1773298261391,0.63164836,2029.4,2029.0,0.61498332]
[1773298261994,0.63164836,2029.4,2029.0,0.62071689]
[1773298263898,0.63164836,2029.4,2029.0,0.00573357]
[1773298264197,0.63164836,2029.4,2028.9,0.86176725]
[1773298265098,0.63164836,2029.4,2029.0,0.61498332]
[1773298273807,0.63164836,2029.4,2029.0,0.29993099]
[1773298275102,0.63164836,2029.3,2028.9,0.25141871]
[1773298275410,0.63164836,2029.1,2028.4,0.29832146]
[1773298276302,0.6380558,2029.1,2028.4,0.30450539]
[1773298279706,0.6380558,2029.1,2028.5,0.29069961]
[1773298280615,0.6380558,2029.1,2028.6,0.28907157]
[1773298289614,0.58364843,2029.5,2029.0,0.2876106]
[1773298290216,0.58364843,2029.3,2028.6,0.28698449]
[1773298290516,0.58874356,2029.3,2028.6,0.28698449]
[1773298292916,0.58874356,2029.3,2028.7,1.63414149]
[1773298293317,0.58364843,2029.1,2028.5,0.28509515]
[1773298298726,0.58364843,2029.1,2028.4,0.53315829]
[1773298299027,0.58364843,2029.1,2028.5,0.28451686]
[1773298300232,0.58364843,2028.9,2028.4,0.53253027]
[1773298303232,0.58364843,2028.9,2028.5,0.29709351]
[1773298303836,0.58364843,2028.9,2028.4,0.54684409]
[1773298304232,0.58364843,2028.9,2028.4,0.24864143]
[1773298304538,0.59113375,2028.7,2028.2,0.2976763]
[1773298304837,0.59113375,2028.7,2028.3,0.29760196]
[1773298305338,0.59113375,2028.7,2028.3,0.30117738]
[1773298313442,0.59113375,2028.7,2028.4,0.28783479]
[1773298313639,0.59113375,2028.7,2028.3,1.64261946]
[1773298313835,0.61761608,2029.1,2028.6,0.29060248]
[1773298314040,0.61761608,2029.1,2028.7,0.29060248]
[1773298314236,0.61761608,2029.1,2028.6,0.29013888]
[1773298321145,0.61761608,2029.1,2028.4,0.28415502]
[1773298322847,0.61761608,2029.1,2028.5,0.2925442]
[1773298323150,0.61761608,2029.2,2028.7,0.2925442]
[1773298327750,0.61761608,2029.2,2028.3,0.28279441]
[1773298327951,0.61761608,2029.2,2028.5,0.27921899]
[1773298330357,0.61761608,2029.2,2028.6,1.34948844]
[1773298330657,0.61761608,2029.2,2028.7,0.27850178]
[1773298335863,0.61761608,2029.2,2028.7,0.52466929]
[1773298336062,0.61761608,2029.2,2028.8,0.27596126]
[1773298340763,0.61761608,2029.2,2028.7,0.24616751]
[1773298340965,0.57198651,2029.0,2028.4,0.20450522]
[1773298345466,0.57198651,2029.0,2028.4,0.45591026]
[1773298346167,0.57198651,2029.2,2028.5,0.20331681]
[1773298346369,0.57198651,2029.2,2028.7,0.20301575]
[1773298348374,0.57198651,2029.2,2028.5,0.20258727]
[1773298348573,0.57198651,2029.1,2028.4,0.45395206]
[1773298350773,0.57198651,2029.1,2028.4,0.25140504]
[1773298350973,0.57198651,2029.1,2028.3,0.20308813]
[1773298352474,0.57198651,2029.1,2028.4,0.20149526]
[1773298353969,0.57198651,2028.9,2028.4,0.20149526]
[1773298358776,0.57198651,2028.9,2028.3,0.25193592]
[1773298358976,0.57198651,2028.9,2028.3,0.4523823]
[1773298362374,0.57198651,2028.9,2028.4,0.26712139]
[1773298376693,0.57198651,2028.9,2028.3,0.25193592]
[1773298377493,0.57198651,2028.9,2028.3,0.51979324]
[1773298379797,0.57198651,2028.9,2028.4,1.34963472]
[1773298380197,0.56007326,2028.7,2028.3,9.45093592]
[1773298380391,0.56007326,2028.7,2028.3,9.7198221]
[1773298380592,0.56007326,2028.7,2028.4,1.34963472]
[1773298392299,0.56007326,2028.7,2028.4,1.61600783]
[1773298396503,0.24643,2028.8,2028.4,1.61600783]
[1773298396706,0.80650326,2028.8,2028.5,0.24295571]
[1773298397898,0.80650326,2028.8,2028.4,1.5924363]
[1773298398802,0.56007326,2028.7,2028.4,1.5924363]
[1773298405006,0.55928681,2029.1,2028.6,1.34963472]
[1773298405204,0.55928681,2029.1,2028.6,1.58767088]
[1773298405704,0.55928681,2029.1,2028.6,1.34963472]
[1773298410609,0.55928681,2029.1,2028.6,1.61283786]
[1773298410811,0.55928681,2029.1,2028.6,1.34963472]
[1773298412408,0.55928681,2029.1,2028.6,1.61283844]
[1773298414113,6.80370855,2029.3,2028.9,0.26311685]
[1773298414309,0.25147513,2029.3,2028.9,0.26311685]
[1773298414514,6.55254743,2029.5,2029.1,0.26297744]
[1773298414714,0.55928681,2029.5,2029.1,0.26297744]
[1773298415208,6.23916999,2029.7,2029.1,0.26297744]
[1773298415513,0.55928681,2029.6,2029.1,0.26297744]
[1773298418713,0.24986729,2029.7,2029.3,0.21392164]
[1773298419014,0.55928681,2029.6,2029.3,0.21392164]
[1773298424616,0.79452132,2029.7,2029.3,0.21392164]
[1773298426022,0.24986729,2029.7,2029.3,0.21392164]
[1773298426720,0.79452132,2029.7,2029.3,0.21392164]
[1773298427023,0.54819132,2029.7,2029.3,0.21392164]
[1773298431125,0.56270813,2029.5,2029.2,0.2420297]
[1773298431319,0.56270813,2029.5,2029.0,0.20301154]
[1773298434629,0.56270813,2029.5,2028.9,0.20226737]
[1773298434921,0.56270813,2029.3,2028.8,0.20226737]
[1773298435326,0.56270813,2029.3,2028.5,1.34963472]
[1773298435327,0.56270813,2029.3,2028.6,0.20216051]
[1773298436327,0.56270813,2029.1,2028.5,0.20199511]
[1773298438330,0.56270813,2029.1,2028.5,0.45050385]
[1773298438828,0.56270813,2029.1,2028.6,0.20145058]
[1773298450640,0.56270813,2029.1,2028.5,0.24850874]
[1773298450937,0.56270813,2029.1,2028.4,0.2155079]
[1773298453335,0.56270813,2029.1,2028.5,0.21565899]
[1773298453539,0.56270813,2029.6,2028.7,0.21565899]
[1773298455442,0.56270813,2029.5,2028.7,0.21565899]
[1773298461640,0.57696916,2029.3,2028.4,10.57325466]
[1773298461844,0.57696916,2029.3,2028.5,0.21600992]
[1773298464843,0.57696916,2029.3,2028.6,0.21542918]
[1773298479053,0.57696916,2029.6,2028.9,0.21293382]
[1773298479258,0.57696916,2029.6,2028.9,9.59793382]
[1773298479859,0.57696916,2029.4,2028.9,9.385]
[1773298480252,0.57696916,2029.4,2028.7,0.2134244]
[1773298482160,0.57696916,2029.4,2028.6,0.21309846]
[1773298482365,0.57696916,2029.4,2028.7,0.21303778]
[1773298487764,0.57696916,2029.4,2028.6,9.64054102]
[1773298487971,0.57696916,2029.4,2028.6,9.85944963]
[1773298489863,0.24635,2029.5,2028.6,9.85944963]
[1773298489864,0.59029001,2029.6,2029.0,1.56860956]
[1773298490069,0.59029001,2029.6,2029.0,0.21918755]
[1773298491872,0.20688922,2029.8,2029.4,1.57446181]
[1773298492066,0.58256981,2030.2,2029.5,0.57051967]
[1773298492266,0.58256981,2030.1,2029.3,0.57051967]
[1773298492567,0.58256981,2030.1,2029.5,0.57051967]
[1773298492867,0.58827438,2030.1,2029.5,0.57051967]
[1773298494962,0.58256981,2030.4,2029.5,0.57051967]
[1773298495169,0.58256981,2030.4,2030.0,0.57051967]
[1773298495370,0.58256981,2030.4,2029.8,0.57051967]
[1773298495976,0.58719518,2030.4,2029.8,0.5754139]
[1773298497776,0.00462537,2030.4,2029.8,0.5754139]
[1773298498272,0.58256981,2030.5,2029.9,0.57051967]
[1773298499078,0.58863057,2030.5,2029.9,0.57051967]
[1773298499280,0.58256981,2030.7,2030.1,0.57051967]
[1773298499574,0.58256981,2030.7,2029.8,0.00489423]
[1773298499575,0.58256981,2031.3,2030.3,0.57051967]
[1773298499779,0.58256981,2031.3,2030.4,0.57051967]
[1773298500374,0.58697183,2031.3,2030.4,0.57051967]
[1773298501580,0.58256981,2031.2,2030.5,0.57051967]
[1773298502884,1.34688453,2030.9,2030.3,0.57051967]
[1773298503087,0.58256981,2030.8,2030.3,0.57051967]
[1773298503474,0.58256981,2030.8,2030.5,0.57051967]
[1773298504287,0.58256981,2030.8,2030.4,0.57051967]
[1773298504586,0.58256981,2030.6,2030.1,0.81299688]
[1773298504986,0.58256981,2030.6,2030.1,0.24247721]
[1773298505181,0.58256981,2030.6,2030.0,0.57051967]
[1773298505982,0.58256981,2030.0,2029.2,0.57051967]
[1773298506183,0.58256981,2029.9,2029.3,0.57051967]
[1773298506383,0.58256981,2030.4,2029.8,1.34688453]
[1773298506688,0.58256981,2030.4,2029.6,1.9174042]
[1773298506885,1.34688453,2030.5,2029.4,1.9174042]
[1773298506886,0.58256981,2030.2,2029.4,1.9174042]
[1773298507084,0.58256981,2030.0,2029.4,1.9174042]
[1773298512794,0.58256981,2030.0,2029.5,0.57051967]
[1773298513994,0.58256981,2030.1,2029.7,0.57051967]
[1773298514492,0.82883981,2030.2,2029.7,0.57051967]
[1773298514993,0.58256981,2030.1,2029.7,0.57051967]
[1773298515695,0.58256981,2030.1,2029.8,1.9174042]
[1773298515898,0.58256981,2030.5,2029.8,1.9174042]
[1773298517394,0.58256981,2030.5,2029.8,0.57051967]
[1773298523001,0.58256981,2030.5,2029.9,0.59957772]
[1773298527100,0.58256981,2030.5,2029.6,1.59873218]
[1773298527295,0.55141395,2030.1,2029.6,0.85142537]
[1773298527502,0.55141395,2030.1,2029.6,0.25184765]
[1773298527801,0.55141395,2030.1,2029.6,0.59957772]
[1773298529305,0.55141395,2030.0,2029.6,0.59957772]
[1773298529704,0.55141395,2030.0,2029.5,0.59957772]
[1773298532107,0.55141395,2030.0,2029.6,0.59957772]
[1773298534605,0.55141395,2030.0,2029.2,1.35153925]
[1773298534807,0.55141395,2030.0,2029.3,0.59957772]
[1773298535909,0.55141395,2029.9,2029.3,0.59957772]
[1773298538607,0.55141395,2029.7,2029.3,0.59957772]
[1773298538805,0.55141395,2029.6,2029.3,0.59957772]
[1773298539012,0.55141395,2029.6,2029.2,0.84729687]
[1773298541506,1.89829848,2029.6,2029.0,0.38575092]
[1773298541704,0.56245707,2029.5,2029.0,0.38575092]
[1773298542711,0.56245707,2029.5,2029.0,0.39164486]
[1773298543506,0.00590843,2029.7,2029.2,0.38009477]
[1773298543706,0.56245707,2029.6,2029.2,0.38009477]
[1773298549911,10.19602744,2030.4,2029.0,0.25196361]
[1773298549912,0.56245707,2030.1,2029.5,1.34688453]
[1773298550119,0.56245707,2030.1,2029.4,0.38307962]
[1773298550417,0.51522373,2030.0,2029.4,0.38307962]
[1773298551118,0.51972034,2030.0,2029.4,0.38307962]
[1773298551619,0.51522373,2029.9,2029.4,0.38307962]
[1773298553321,0.51522373,2029.9,2029.6,0.45147887]
[1773298553709,0.51972034,2030.0,2029.6,0.45147887]
[1773298554722,0.00449661,2030.0,2029.6,0.45147887]
[1773298555319,0.51972034,2030.0,2029.6,0.45147887]
[1773298558225,0.51972034,2030.0,2029.7,0.45058991]
[1773298559425,0.51522373,2030.2,2029.7,0.45058991]
[1773298559626,0.51522373,2030.2,2029.7,1.79747444]
[1773298559829,0.51522373,2030.5,2030.1,1.91600031]
[1773298560215,0.51522373,2030.5,2030.1,0.56911578]
[1773298560526,0.5208115,2030.5,2029.9,1.91600031]
[1773298563528,0.5208115,2030.5,2029.9,0.56911578]
[1773298573839,0.51522373,2030.8,2030.0,0.56911578]
[1773298574937,0.52081968,2030.8,2030.0,0.56911578]
[1773298579443,0.51522373,2030.6,2030.0,0.56911578]
[1773298586445,0.54726504,2030.8,2030.0,0.56911578]
[1773298600950,0.54726504,2030.8,2029.9,1.59089234]
[1773298600951,0.54726504,2030.8,2030.2,0.54736078]
[1773298602349,0.00559595,2030.8,2030.4,0.57202239]
[1773298602550,0.59076226,2030.9,2030.4,0.57202239]
[1773298603457,0.59637267,2030.9,2030.4,0.57202239]
[1773298607960,0.59637267,2030.9,2030.4,0.81879636]
[1773298608561,0.59637267,2030.9,2030.2,0.57202239]
[1773298608762,0.59637267,2030.9,2029.9,0.57202239]
[1773298609163,0.59076226,2030.7,2029.9,0.57202239]
[1773298609366,0.59076226,2030.5,2029.7,0.57202239]
[1773298610362,0.59076226,2030.5,2029.7,0.82129567]
[1773298610765,0.59076226,2030.5,2029.8,0.59197685]
[1773298639597,0.58265812,2030.2,2029.7,0.24927328]
[1773298639898,0.58265812,2030.0,2029.4,0.59197685]
[1773298640397,0.58265812,2030.0,2029.3,1.89513983]
[1773298640899,0.58265812,2030.0,2029.4,0.54738493]
[1773298644104,0.54211938,2029.8,2029.4,0.54738493]
[1773298644293,0.54211938,2029.8,2029.3,0.78770225]
[1773298644799,0.54211938,2029.8,2029.4,0.54738493]
[1773298644994,0.54211938,2029.8,2029.3,0.24031732]
[1773298645198,0.54211938,2029.8,2029.2,0.54738493]
[1773298645705,0.54211938,2029.8,2029.2,0.79979906]
[1773298648710,0.54211938,2029.8,2029.3,0.54738493]
[1773298664523,0.54211938,2029.8,2029.2,0.25241413]
[1773298664720,0.54211938,2029.8,2029.1,0.55863489]
[1773298669728,0.54211938,2029.8,2029.1,0.80362048]
[1773298669927,0.54211938,2029.8,2029.2,0.55863489]
[1773298673129,0.54211938,2029.8,2029.3,0.57163953]
[1773298676728,0.54211938,2029.8,2029.2,1.3477549]
[1773298676936,0.57177309,2029.6,2029.0,0.57753347]
[1773298677126,0.57177309,2029.6,2029.1,0.57163953]
[1773298681243,0.57177309,2029.4,2028.8,0.57163953]
[1773298682243,0.57646208,2029.4,2029.0,0.57163953]
[1773298687543,0.57646208,2029.4,2028.8,0.25633474]
[1773298687544,0.57646208,2029.4,2028.9,0.57163953]
[1773298687740,0.57646208,2029.4,2028.8,0.82797427]
[1773298688045,0.57646208,2029.4,2028.9,0.57163953]
[1773298694646,0.00468899,2029.4,2028.9,0.57163953]
[1773298695151,0.57646208,2029.4,2028.9,0.57163953]
[1773298695650,0.57177309,2029.6,2029.1,0.57163953]
[1773298695855,0.81809309,2029.7,2029.1,0.57163953]
[1773298696751,0.82293685,2029.7,2029.1,0.57163953]
[1773298699860,0.57177309,2029.6,2029.1,0.57163953]
[1773298704358,0.57177309,2029.6,2029.1,0.81817738]
[1773298704560,0.57177309,2029.6,2029.2,0.55566496]
[1773298706665,0.58982745,2029.7,2029.2,0.55566496]
[1773298707661,0.00484376,2029.7,2029.2,0.55566496]
[1773298710169,0.58982745,2029.7,2029.2,0.55566496]
[1773298711468,0.00484376,2029.7,2029.2,0.55566496]
[1773298712171,0.58982745,2029.7,2029.2,0.55566496]
[1773298720880,0.00484376,2029.7,2029.2,0.55566496]
[1773298724985,0.00484376,2029.7,2029.3,0.59099208]
[1773298740497,6.05642,2030.8,2029.3,0.59099208]
[1773298740701,0.57374368,2030.3,2029.7,0.5817762]
[1773298741099,0.24629,2030.0,2029.3,0.5817762]
[1773298741300,0.57374368,2029.9,2029.3,0.5817762]
[1773298741603,0.58000582,2029.9,2029.3,0.5817762]
[1773298745609,0.58000582,2029.9,2029.4,0.5817762]
[1773298750414,0.58000582,2029.9,2029.2,0.5817762]
[1773298752215,0.58000582,2029.9,2029.4,0.5817762]
[1773298785939,0.00626214,2029.9,2029.4,0.5817762]
[1773298786646,0.55117557,2029.9,2029.4,0.5817762]
[1773298787543,0.00626214,2029.9,2029.4,0.5817762]
[1773298787741,0.54491343,2030.4,2029.4,0.5817762]
[1773298787946,0.54491343,2030.1,2029.5,0.53994584]
[1773298788846,0.54846446,2030.1,2029.5,0.53994584]
[1773298789547,0.79474446,2030.1,2029.5,0.53994584]
[1773298789748,0.54491343,2030.0,2029.5,0.53994584]
[1773298791152,0.83067412,2030.1,2029.5,0.53994584]
[1773298794054,0.24983103,2030.1,2029.7,0.5684705]
[1773298794755,0.83067412,2030.1,2029.7,0.5684705]
[1773298795855,0.00355103,2030.1,2029.7,0.5684705]
[1773298796056,0.58084309,2030.5,2030.0,1.91683335]
[1773298796355,0.58084309,2030.5,2030.0,0.5684705]
[1773298797156,0.58484947,2030.5,2030.0,0.5684705]
[1773298797352,0.58484947,2030.5,2030.2,0.5684705]
[1773298797656,0.58084309,2030.5,2030.0,0.5684705]
[1773298798553,0.58439693,2030.5,2030.0,0.5684705]
[1773298799852,0.00355384,2030.5,2030.0,0.5684705]
[1773298800959,0.58084309,2030.8,2030.2,0.5684705]
[1773298801560,0.58084309,2030.7,2030.2,0.5684705]
[1773298801960,0.58716709,2030.7,2030.2,0.5684705]
[1773298802556,1.34836285,2030.4,2029.9,0.5684705]
[1773298802760,0.58084309,2030.3,2029.9,0.5684705]
[1773298804963,0.58084309,2030.4,2029.9,0.5684705]
[1773298805258,0.24623,2030.5,2029.9,0.5684705]
[1773298805465,0.58084309,2030.6,2030.2,0.5684705]
[1773298805665,0.58084309,2030.6,2030.0,0.5684705]
[1773298808964,0.58084309,2030.0,2029.5,0.5684705]
[1773298809656,0.58084309,2030.3,2029.5,0.5684705]
[1773298825280,0.54142476,2030.1,2029.5,0.5684705]
[1773298826382,0.54142476,2029.9,2029.4,0.52636146]
[1773298828086,0.78771476,2030.0,2029.4,0.52636146]
[1773298838193,0.24625,2030.4,2029.4,0.52636146]
[1773298838493,0.54142476,2030.3,2029.4,0.52636146]
[1773298841093,0.54142476,2030.3,2029.4,0.34804229]
[1773298841899,0.54142476,2030.3,2029.5,0.52013978]
[1773298850599,0.54142476,2030.3,2029.6,1.34760976]
[1773298850901,0.54142476,2030.3,2029.7,0.51794008]
[1773298857105,0.54142476,2030.3,2029.8,0.51794008]
[1773298858106,0.55509367,2030.6,2029.8,0.51794008]
[1773298858501,0.006324,2030.7,2030.2,0.51794008]
[1773298859005,0.56141767,2030.7,2030.2,0.51794008]
[1773298862712,0.56141767,2030.7,2030.0,0.51794008]
[1773298863913,0.56141767,2030.7,2030.1,0.51794008]
[1773298869818,0.56141767,2030.7,2030.2,0.51794008]
[1773298875818,0.56141767,2030.7,2030.1,1.34728347]
[1773298876219,0.56141767,2030.7,2030.1,1.86522355]
[1773298877720,0.56141767,2030.7,2030.2,0.51794008]
[1773298883319,0.006324,2030.7,2030.4,0.52770306]
[1773298883516,1.34728347,2031.3,2030.4,0.52770306]
[1773298883517,0.22863789,2031.1,2030.6,0.52770306]
[1773298883820,0.22862135,2031.0,2030.6,0.52770306]
[1773298884323,1.34728347,2031.3,2030.6,0.52770306]
[1773298884519,0.22862089,2031.2,2030.6,0.52770306]
[1773298885919,0.0052408,2031.3,2030.9,0.52770306]
[1773298886115,0.25581106,2031.2,2030.5,0.52770306]
[1773298886521,0.54699432,2030.8,2030.4,0.53143349]
[1773298886721,0.0052408,2031.3,2030.5,0.52770306]
[1773298886722,0.54699432,2031.2,2030.5,0.52770306]
[1773298890126,0.54699432,2031.2,2030.7,0.52770306]
[1773298890329,0.54699432,2031.1,2030.7,0.52770306]
[1773298890829,0.54699432,2031.1,2030.5,0.52770306]
[1773298897229,0.0052408,2031.3,2030.4,1.59935153]
[1773298897230,0.54699432,2030.9,2030.4,0.77977112]
[1773298897429,0.54699432,2030.9,2030.5,0.52770306]
[1773298900038,0.54699432,2031.0,2030.5,0.52770306]
[1773298900937,0.0052408,2031.3,2030.3,0.41713655]
[1773298900938,0.54699432,2030.7,2030.3,0.41713655]
[1773298901939,0.54699432,2030.7,2030.3,0.42279624]
[1773298904533,0.54699432,2030.7,2030.3,0.00565969]
[1773298904735,0.54699432,2030.7,2030.2,0.58647058]
[1773298905634,0.54699432,2030.7,2030.2,0.59176287]
[1773298909044,0.59213907,2030.8,2030.2,0.59176287]
[1773298914154,0.59213907,2030.8,2030.3,0.59873616]
[1773298917350,0.57317645,2030.8,2030.3,0.59873616]
[1773298919655,0.57317645,2030.6,2030.2,0.84797015]
[1773298919850,0.57317645,2030.6,2030.3,0.59873616]
[1773298920354,0.57317645,2030.8,2030.3,0.59873616]
[1773298920554,1.92045992,2030.9,2030.3,0.59873616]
[1773298922057,0.57317645,2030.8,2030.3,0.59873616]
[1773298925463,0.57317645,2031.0,2030.3,0.59873616]
[1773298925663,0.57317645,2031.0,2030.4,0.59873616]
[1773298925960,0.57317645,2031.0,2030.3,1.34728347]
[1773298926264,0.57317645,2031.0,2030.3,0.59873616]
[1773298927059,1.34728347,2030.9,2030.3,0.59873616]
[1773298927264,0.57317645,2030.8,2030.2,0.84797015]
[1773298927464,0.57317645,2030.8,2030.3,0.59873616]
[1773298928163,0.57317645,2031.0,2030.4,0.59873616]
[1773298930461,0.57317645,2031.0,2030.6,0.59873616]
[1773298930765,0.57317645,2031.2,2030.6,0.59873616]
[1773298936168,0.57317645,2031.2,2030.7,0.59873616]
[1773298940472,0.57317645,2031.2,2030.6,0.24628187]
[1773298940770,0.57317645,2031.2,2030.5,0.56090431]
[1773298940970,0.57317645,2031.2,2030.5,0.80121457]
[1773298941372,0.57317645,2031.2,2030.6,0.56090431]
[1773298948270,0.55645418,2031.3,2030.6,0.56090431]
[1773298948470,0.55121338,2031.1,2030.5,0.80121457]
[1773298948773,0.55121338,2031.1,2030.6,0.56090431]
[1773298959178,0.55121338,2030.9,2030.5,0.24031026]
[1773298959381,0.55121338,2030.9,2030.3,0.56090431]
[1773298960785,0.55121338,2030.9,2030.3,0.80702557]
[1773298961289,0.55121338,2030.9,2030.3,0.24612126]
[1773298961489,0.55121338,2030.9,2030.2,0.54975274]
[1773298963989,0.0052408,2031.3,2030.2,0.54975274]
[1773298964292,0.5399203,2031.0,2030.2,0.54975274]
[1773298965995,0.5399203,2031.0,2030.3,0.54446045]
[1773298970293,0.53892511,2030.8,2030.3,0.54446045]
[1773298976604,0.24618,2030.9,2030.3,0.54446045]
[1773298976803,0.78510511,2030.9,2030.3,0.54446045]
[1773298977005,0.53892511,2030.8,2030.3,0.54446045]
[1773298978300,0.53892511,2030.8,2030.3,0.5323188]
[1773298981105,0.53892511,2030.8,2030.2,0.24906384]
[1773298981304,0.53892511,2030.6,2030.1,0.5323188]
[1773298982106,0.78512511,2030.7,2030.1,0.53806874]
[1773298982410,0.53892511,2030.6,2030.1,0.53806874]
[1773298983612,0.53892511,2030.7,2030.1,0.53806874]
[1773298983810,0.53892511,2031.1,2030.1,0.53806874]
[1773298984013,0.53892511,2030.9,2030.1,0.53806874]
[1773298988717,0.53892511,2030.9,2030.2,0.5323188]
[1773298991624,0.53892511,2030.8,2030.2,0.5323188]
[1773298997425,0.53892511,2030.9,2030.2,0.5323188]
[1773298998628,0.53892511,2030.9,2030.4,0.5323188]
[1773299002627,0.59431486,2031.0,2030.4,0.5323188]
[1773299003034,0.59431486,2030.8,2030.2,0.58568692]
[1773299021547,0.58214061,2030.6,2030.1,0.82820767]
[1773299021749,0.58214061,2030.6,2030.2,0.57064804]
[1773299029153,0.58214061,2030.6,2030.1,0.82820767]
[1773299032151,0.58214061,2030.6,2030.2,0.56418606]
[1773299032747,0.58214061,2030.6,2030.1,0.82174569]
[1773299032952,0.58214061,2030.6,2030.2,0.56418606]
[1773299042468,0.58214061,2030.6,2030.1,0.82174569]
[1773299043268,0.58214061,2030.6,2030.2,0.56418606]
[1773299044769,1.94620843,2030.3,2029.4,1.34730419]
[1773299044968,1.94620843,2030.3,2029.6,1.34730419]
[1773299045267,0.59890424,2030.3,2029.6,1.34730419]
[1773299045767,0.84494029,2030.5,2029.8,1.34730419]
[1773299045966,0.84494029,2030.5,2030.0,1.34730419]
[1773299046267,1.94601448,2030.9,2030.0,1.34730419]
[1773299046568,0.59871029,2030.8,2030.0,1.34730419]
[1773299051577,0.59871029,2030.8,2029.8,1.34731284]
[1773299054375,0.59871029,2030.8,2029.8,1.5990366]
[1773299056174,0.59871029,2030.8,2029.8,11.91865976]
[1773299056475,0.59871029,2030.8,2030.2,0.00199912]
[1773299060383,0.59871029,2030.8,2030.1,7.73971737]
[1773299060778,0.61112996,2030.6,2030.1,7.75471083]
[1773299064582,0.61112996,2030.6,2030.1,8.00142276]
[1773299064886,0.61112996,2030.6,2030.2,0.02092764]
[1773299066586,0.61112996,2030.6,2030.1,8.01177016]
[1773299067788,0.61112996,2030.6,2030.2,0.02848072]
[1773299070491,0.61112996,2030.6,2030.1,8.02194751]
[1773299070887,0.61508018,2030.4,2030.0,0.03581747]
[1773299072492,0.61508018,2030.4,2029.9,7.78101306]
[1773299073097,0.61508018,2030.4,2030.0,0.04158774]
[1773299077002,0.61508018,2030.4,2029.9,7.98988938]
[1773299077202,0.61508018,2030.4,2029.9,8.04245349]
[1773299077607,0.61508018,2030.4,2029.9,7.98988938]
[1773299078607,0.61508018,2030.4,2029.9,8.0201311]
[1773299082312,0.61508018,2030.4,2029.9,7.73971737]
[1773299082503,0.61508018,2030.4,2029.8,7.78342184]
[1773299083010,0.61508018,2030.4,2029.9,0.04391081]
[1773299083407,0.61508018,2030.4,2029.7,8.03578637]
[1773299084311,0.61508018,2030.4,2029.8,0.04643867]
[1773299089316,0.61508018,2030.4,2029.7,0.24983951]
[1773299089514,0.61508018,2030.4,2029.7,0.08228974]
[1773299101029,0.65629358,2030.0,2029.6,0.25092873]
[1773299101326,0.65629358,2030.0,2029.6,0.00434061]
[1773299101527,0.65629358,2030.0,2029.4,0.14235725]
[1773299102428,0.65629358,2030.0,2029.4,0.14683007]
[1773299105637,0.65629358,2030.0,2029.5,0.1541449]
[1773299111029,0.65629358,2030.0,2029.4,0.40822183]
[1773299111336,0.65629358,2030.0,2029.1,0.16760827]
[1773299111337,0.65629358,2029.8,2029.1,0.16760827]
[1773299111542,0.65629358,2029.8,2029.0,0.16926694]
[1773299112541,0.66176712,2029.8,2029.0,0.17521329]
[1773299112736,0.66176712,2029.8,2029.1,0.17432736]
[1773299113540,0.66176712,2029.8,2029.2,1.52450077]
[1773299117443,0.66176712,2029.8,2029.2,1.34855261]
[1773299119744,0.66176712,2029.8,2029.1,1.52766669]
[1773299121143,0.66176712,2029.8,2029.2,0.18036573]
[1773299121346,0.66176712,2029.8,2029.3,1.52891834]
[1773299122644,0.66176712,2029.8,2029.3,1.34855261]
[1773299124749,0.66176712,2029.8,2029.2,0.18357809]
[1773299125046,0.67448362,2029.5,2029.0,0.25298915]
[1773299125249,0.67448362,2029.5,2029.0,0.44054978]
[1773299125545,0.67448362,2029.5,2029.0,1.78910239]
[1773299126642,0.67448362,2029.4,2029.0,1.78910239]
[1773299127153,0.67448362,2029.4,2029.0,1.35449896]
[1773299127752,0.67448362,2029.4,2029.0,1.54622944]
[1773299129160,0.67448362,2029.4,2029.1,0.19846507]
[1773299129553,0.67448362,2029.4,2029.1,0.00109143]
[1773299129752,0.67448362,2029.4,2029.0,1.35449896]
[1773299130357,0.67448362,2029.4,2029.1,0.00129174]
[1773299130557,0.67448362,2029.4,2029.0,1.35449896]
[1773299131454,0.67448362,2029.4,2029.0,1.356008]
[1773299131655,0.67448362,2029.4,2029.0,0.00594635]
[1773299131857,0.67448362,2029.4,2028.9,0.24794799]
[1773299132259,0.67448362,2029.4,2028.9,0.24643895]
[1773299132461,0.67448362,2029.4,2028.8,1.34855261]
[1773299132861,0.67448362,2029.4,2028.8,1.35380535]
[1773299133056,0.67448362,2029.4,2028.9,0.00276755]
[1773299133258,0.67448362,2029.4,2029.0,1.35132016]
[1773299136061,0.67448362,2029.4,2029.0,1.34855261]
[1773299136469,0.67448362,2029.4,2028.8,1.59673219]
[1773299136663,0.67448362,2029.4,2028.8,0.00525274]
[1773299138868,0.67448362,2029.2,2028.8,0.00525274]
[1773299139070,0.67448362,2029.2,2028.8,0.3450068]